[Event "Early-Titled-Tuesday-Blitz-July-09-2024"]
[Site "Chess.com"]
[Date "2024.07.09"]
[Round "8"]
[White "GrumbleBruno"]
[Black "Zavgorodniy_Sergiy"]
[Result "0-1"]
[WhiteElo "2511"]
[BlackElo "2669"]
[TimeControl "180+1"]
[EndTime "9:28:22 PDT"]
[Termination "Zavgorodniy_Sergiy won by resignation"]

1. e4 {[%clk 0:03:00.9]} 1... e5 {[%clk 0:02:55]} 2. Nf3 {[%clk 0:03:00.1]} 2...
d6 {[%clk 0:02:55.1]} 3. d4 {[%clk 0:02:58.9]} 3... exd4 {[%clk 0:02:55.5]} 4.
Qxd4 {[%clk 0:02:59.1]} 4... Nc6 {[%clk 0:02:54.5]} 5. Bb5 {[%clk 0:02:58.8]}
5... Bd7 {[%clk 0:02:55.2]} 6. Bxc6 {[%clk 0:02:51.6]} 6... Bxc6 {[%clk
0:02:56.1]} 7. Nc3 {[%clk 0:02:50.7]} 7... Nf6 {[%clk 0:02:56.1]} 8. Bg5 {[%clk
0:02:50.2]} 8... Be7 {[%clk 0:02:56.6]} 9. O-O-O {[%clk 0:02:50.4]} 9... O-O
{[%clk 0:02:57.1]} 10. Rhe1 {[%clk 0:02:49.8]} 10... h6 {[%clk 0:02:44.3]} 11.
Bh4 {[%clk 0:02:14.8]} 11... Re8 {[%clk 0:02:44]} 12. Bg3 {[%clk 0:01:52]} 12...
Nd7 {[%clk 0:02:40.5]} 13. Nd5 {[%clk 0:01:50.8]} 13... Bf6 {[%clk 0:02:31]} 14.
Nxf6+ {[%clk 0:01:36.6]} 14... Qxf6 {[%clk 0:02:31.9]} 15. e5 {[%clk 0:01:25.5]}
15... Qe6 {[%clk 0:02:14.9]} 16. exd6 {[%clk 0:01:15.9]} 16... Qxa2 {[%clk
0:02:14.3]} 17. dxc7 {[%clk 0:01:16.2]} 17... Rec8 {[%clk 0:01:59.7]} 18. Re3
{[%clk 0:01:05.9]} 18... Qa1+ {[%clk 0:01:32]} 19. Kd2 {[%clk 0:01:05.4]} 19...
Qa5+ {[%clk 0:01:32.6]} 20. Qc3 {[%clk 0:00:41.9]} 20... Qb5 {[%clk 0:01:20.1]}
21. Kc1 {[%clk 0:00:35.5]} 21... Nf6 {[%clk 0:01:04.2]} 22. Re5 {[%clk 0:00:31]}
22... Qa4 {[%clk 0:00:57.4]} 23. b3 {[%clk 0:00:29.9]} 23... Qa3+ {[%clk
0:00:54.7]} 24. Qb2 {[%clk 0:00:29.3]} 24... Qxb2+ {[%clk 0:00:53.7]} 25. Kxb2
{[%clk 0:00:29.3]} 25... Rxc7 {[%clk 0:00:54.4]} 26. Rc5 {[%clk 0:00:19.2]}
26... Rd7 {[%clk 0:00:47.4]} 27. Ne5 {[%clk 0:00:18.6]} 27... Rxd1 {[%clk
0:00:46.2]} 0-1

[Event "Early-Titled-Tuesday-Blitz-July-09-2024"]
[Site "Chess.com"]
[Date "2024.07.09"]
[Round "8"]
[White "ThetNaung291"]
[Black "Mikhail_Golubev"]
[Result "0-1"]
[WhiteElo "2437"]
[BlackElo "2630"]
[TimeControl "180+1"]
[EndTime "9:28:22 PDT"]
[Termination "Mikhail_Golubev won by resignation"]

1. e4 {[%clk 0:03:00]} 1... c5 {[%clk 0:02:59.6]} 2. Nc3 {[%clk 0:02:58]} 2...
Nc6 {[%clk 0:02:57.8]} 3. f4 {[%clk 0:02:57.4]} 3... g6 {[%clk 0:02:56.6]} 4.
Nf3 {[%clk 0:02:56.5]} 4... Bg7 {[%clk 0:02:57.1]} 5. Bc4 {[%clk 0:02:53.8]}
5... e6 {[%clk 0:02:56.7]} 6. O-O {[%clk 0:02:50.9]} 6... Nge7 {[%clk
0:02:55.4]} 7. d3 {[%clk 0:02:47.4]} 7... O-O {[%clk 0:02:49.3]} 8. e5 {[%clk
0:02:41.6]} 8... d6 {[%clk 0:02:39.3]} 9. exd6 {[%clk 0:02:41.1]} 9... Nf5
{[%clk 0:02:38.6]} 10. Ne4 {[%clk 0:02:39.3]} 10... Nxd6 {[%clk 0:02:34.7]} 11.
Nxd6 {[%clk 0:02:23.6]} 11... Qxd6 {[%clk 0:02:33.9]} 12. c3 {[%clk 0:02:19.1]}
12... b6 {[%clk 0:02:23.5]} 13. Qe2 {[%clk 0:02:17.6]} 13... Bb7 {[%clk
0:02:22.9]} 14. Be3 {[%clk 0:02:16.3]} 14... Rad8 {[%clk 0:02:18.4]} 15. Rad1
{[%clk 0:02:15.2]} 15... Rfe8 {[%clk 0:01:38.5]} 16. Nd2 {[%clk 0:02:11.3]}
16... Na5 {[%clk 0:01:09.8]} 17. Ne4 {[%clk 0:02:10.7]} 17... Qc6 {[%clk
0:01:03.2]} 18. Ng5 {[%clk 0:02:04.6]} 18... Nxc4 {[%clk 0:00:59.7]} 19. dxc4
{[%clk 0:02:04.2]} 19... Rxd1 {[%clk 0:00:48.9]} 20. Rxd1 {[%clk 0:02:03.9]}
20... e5 {[%clk 0:00:46.1]} 21. f5 {[%clk 0:01:55.8]} 21... gxf5 {[%clk
0:00:42.3]} 22. Rd5 {[%clk 0:01:48.9]} 22... f4 {[%clk 0:00:32.1]} 23. Bc1
{[%clk 0:01:30.5]} 23... Qg6 {[%clk 0:00:20]} 24. Ne4 {[%clk 0:01:10.4]} 24...
Bxd5 {[%clk 0:00:16.3]} 25. cxd5 {[%clk 0:01:10.3]} 25... f5 {[%clk 0:00:15.5]}
26. Nf2 {[%clk 0:01:07.3]} 26... Bh6 {[%clk 0:00:14.4]} 27. Nd3 {[%clk
0:01:00.5]} 27... f3 {[%clk 0:00:12.6]} 0-1

[Event "Early-Titled-Tuesday-Blitz-July-09-2024"]
[Site "Chess.com"]
[Date "2024.07.09"]
[Round "8"]
[White "chessdjw"]
[Black "sergeikim"]
[Result "0-1"]
[WhiteElo "2743"]
[BlackElo "2604"]
[TimeControl "180+1"]
[EndTime "9:28:27 PDT"]
[Termination "sergeikim won on time"]

1. c4 {[%clk 0:03:00.9]} 1... Nf6 {[%clk 0:02:56.8]} 2. Nc3 {[%clk 0:03:00.9]}
2... g6 {[%clk 0:02:57]} 3. d4 {[%clk 0:03:00.5]} 3... Bg7 {[%clk 0:02:56.3]} 4.
e4 {[%clk 0:03:00.9]} 4... d6 {[%clk 0:02:53.3]} 5. Be2 {[%clk 0:03:01.4]} 5...
O-O {[%clk 0:02:53.4]} 6. Bg5 {[%clk 0:03:02]} 6... Nbd7 {[%clk 0:02:52.6]} 7.
Qd2 {[%clk 0:02:56.2]} 7... a6 {[%clk 0:02:52.4]} 8. Nf3 {[%clk 0:02:41.6]} 8...
e5 {[%clk 0:02:51.5]} 9. O-O {[%clk 0:02:18.1]} 9... exd4 {[%clk 0:02:50.6]} 10.
Nxd4 {[%clk 0:02:17.4]} 10... c6 {[%clk 0:02:50.9]} 11. Rad1 {[%clk 0:02:10]}
11... a5 {[%clk 0:02:48.1]} 12. Nc2 {[%clk 0:02:07.3]} 12... a4 {[%clk
0:02:31.2]} 13. Qxd6 {[%clk 0:02:00.8]} 13... Qa5 {[%clk 0:02:31]} 14. Be3
{[%clk 0:01:31.3]} 14... Re8 {[%clk 0:02:25.3]} 15. f3 {[%clk 0:01:25.9]} 15...
Bf8 {[%clk 0:02:16.8]} 16. Qd2 {[%clk 0:01:23]} 16... Nc5 {[%clk 0:02:13.6]} 17.
Kh1 {[%clk 0:01:08.5]} 17... Bg7 {[%clk 0:02:06.5]} 18. Bd4 {[%clk 0:00:55.8]}
18... Be6 {[%clk 0:02:00.9]} 19. Qe3 {[%clk 0:00:50.8]} 19... b6 {[%clk
0:01:57.1]} 20. e5 {[%clk 0:00:38.7]} 20... Nfd7 {[%clk 0:01:54]} 21. f4 {[%clk
0:00:38.3]} 21... Bf5 {[%clk 0:01:53.4]} 22. Na3 {[%clk 0:00:34.7]} 22... Ne6
{[%clk 0:01:52.3]} 23. g4 {[%clk 0:00:20.1]} 23... Nxd4 {[%clk 0:01:51.9]} 24.
Qxd4 {[%clk 0:00:18.8]} 24... Be6 {[%clk 0:01:50.6]} 25. Bf3 {[%clk 0:00:16.2]}
25... Rac8 {[%clk 0:01:42.1]} 26. Ne4 {[%clk 0:00:16.2]} 26... Red8 {[%clk
0:01:20.1]} 27. Nd6 {[%clk 0:00:14.4]} 27... Nxe5 {[%clk 0:01:20.2]} 28. fxe5
{[%clk 0:00:06.4]} 28... Bxe5 {[%clk 0:01:19.6]} 29. Nb7 {[%clk 0:00:02.1]}
29... Bxd4 {[%clk 0:01:17.9]} 30. Nxa5 {[%clk 0:00:02.5]} 30... bxa5 {[%clk
0:01:18.4]} 31. Rd2 {[%clk 0:00:02.1]} 31... c5 {[%clk 0:01:10.3]} 0-1

[Event "Early-Titled-Tuesday-Blitz-July-09-2024"]
[Site "Chess.com"]
[Date "2024.07.09"]
[Round "8"]
[White "marvinguevara"]
[Black "UnTucopalaTimba"]
[Result "1-0"]
[WhiteElo "2042"]
[BlackElo "2106"]
[TimeControl "180+1"]
[EndTime "9:28:31 PDT"]
[Termination "marvinguevara won by resignation"]

1. e4 {[%clk 0:03:00.9]} 1... c6 {[%clk 0:02:59.3]} 2. d4 {[%clk 0:03:00.3]}
2... d5 {[%clk 0:02:59.3]} 3. e5 {[%clk 0:03:00.8]} 3... Bf5 {[%clk 0:02:59]} 4.
h4 {[%clk 0:03:00.3]} 4... h5 {[%clk 0:02:57.1]} 5. Bd3 {[%clk 0:03:00.5]} 5...
Bxd3 {[%clk 0:02:55.9]} 6. Qxd3 {[%clk 0:03:01.4]} 6... e6 {[%clk 0:02:55.5]} 7.
Nf3 {[%clk 0:03:01.7]} 7... c5 {[%clk 0:02:53.5]} 8. c3 {[%clk 0:02:59.2]} 8...
Nc6 {[%clk 0:02:53]} 9. dxc5 {[%clk 0:02:54.1]} 9... Bxc5 {[%clk 0:02:48.3]} 10.
b4 {[%clk 0:02:54.5]} 10... Bb6 {[%clk 0:02:45.9]} 11. b5 {[%clk 0:02:53.5]}
11... Nce7 {[%clk 0:02:45.2]} 12. Ba3 {[%clk 0:02:52.3]} 12... Nf5 {[%clk
0:02:40.9]} 13. Nbd2 {[%clk 0:02:45.7]} 13... Rc8 {[%clk 0:02:36.4]} 14. Nb3
{[%clk 0:02:44.6]} 14... Qc7 {[%clk 0:02:32.9]} 15. O-O {[%clk 0:02:36.6]} 15...
Qc4 {[%clk 0:02:26.5]} 16. Qxc4 {[%clk 0:02:27]} 16... Rxc4 {[%clk 0:02:25.4]}
17. Bb2 {[%clk 0:01:56.1]} 17... Nxh4 {[%clk 0:02:20.3]} 18. Nbd4 {[%clk
0:01:49.9]} 18... Nxf3+ {[%clk 0:02:17]} 19. Nxf3 {[%clk 0:01:50.1]} 19... Ne7
{[%clk 0:02:13]} 20. a4 {[%clk 0:01:45.9]} 20... a5 {[%clk 0:02:08.8]} 21. Ba3
{[%clk 0:01:32.7]} 21... Nf5 {[%clk 0:02:03.4]} 22. Bb2 {[%clk 0:01:17.1]} 22...
h4 {[%clk 0:01:54.4]} 23. Nd4 {[%clk 0:01:17]} 23... Nxd4 {[%clk 0:01:42.7]} 24.
cxd4 {[%clk 0:01:17]} 24... Bxd4 {[%clk 0:01:37.5]} 25. Bxd4 {[%clk 0:01:17.5]}
25... Rxd4 {[%clk 0:01:37.7]} 26. Rfc1 {[%clk 0:01:18]} 26... Kd7 {[%clk
0:01:35.7]} 27. b6 {[%clk 0:01:17]} 27... Rc4 {[%clk 0:01:25.4]} 28. Rxc4 {[%clk
0:01:09.2]} 28... dxc4 {[%clk 0:01:25.3]} 29. Rd1+ {[%clk 0:01:08.4]} 29... Ke7
{[%clk 0:01:20.8]} 30. Kf1 {[%clk 0:01:03.8]} 30... Rc8 {[%clk 0:01:18.7]} 31.
Ke2 {[%clk 0:00:57.2]} 31... g5 {[%clk 0:01:17.2]} 32. Kd2 {[%clk 0:00:54.2]}
32... Rc5 {[%clk 0:01:15.9]} 33. Kc3 {[%clk 0:00:51.2]} 33... f6 {[%clk
0:01:05.7]} 34. exf6+ {[%clk 0:00:47.7]} 34... Kxf6 {[%clk 0:01:03.3]} 35. Rd7
{[%clk 0:00:47.2]} 35... g4 {[%clk 0:00:55.4]} 36. Rxb7 {[%clk 0:00:45.6]} 36...
g3 {[%clk 0:00:52.2]} 37. fxg3 {[%clk 0:00:41.4]} 37... hxg3 {[%clk 0:00:50.5]}
38. Rc7 {[%clk 0:00:41]} 38... Rg5 {[%clk 0:00:49.2]} 39. b7 {[%clk 0:00:39.7]}
1-0

[Event "Early-Titled-Tuesday-Blitz-July-09-2024"]
[Site "Chess.com"]
[Date "2024.07.09"]
[Round "8"]
[White "Horokoskii"]
[Black "WilsonPalencia21"]
[Result "0-1"]
[WhiteElo "2103"]
[BlackElo "2571"]
[TimeControl "180+1"]
[EndTime "9:28:36 PDT"]
[Termination "WilsonPalencia21 won by resignation"]

1. c4 {[%clk 0:03:00.9]} 1... g6 {[%clk 0:02:59]} 2. Nc3 {[%clk 0:03:00.7]} 2...
Bg7 {[%clk 0:02:58.7]} 3. g3 {[%clk 0:02:59.5]} 3... c5 {[%clk 0:02:57.9]} 4.
Bg2 {[%clk 0:02:59.5]} 4... Nf6 {[%clk 0:02:58.1]} 5. Nf3 {[%clk 0:02:58.8]}
5... O-O {[%clk 0:02:58]} 6. O-O {[%clk 0:02:59.2]} 6... Nc6 {[%clk 0:02:58.4]}
7. d3 {[%clk 0:02:59.5]} 7... d5 {[%clk 0:02:55.9]} 8. cxd5 {[%clk 0:02:58.3]}
8... Nxd5 {[%clk 0:02:56.8]} 9. Bd2 {[%clk 0:02:54.5]} 9... Nc7 {[%clk
0:02:56.5]} 10. a3 {[%clk 0:02:51.8]} 10... b6 {[%clk 0:02:52.9]} 11. Rc1 {[%clk
0:02:48.6]} 11... Bb7 {[%clk 0:02:52.6]} 12. Qc2 {[%clk 0:02:47.7]} 12... Rc8
{[%clk 0:02:51.9]} 13. Ne4 {[%clk 0:02:47.1]} 13... Ne6 {[%clk 0:02:49.2]} 14.
Bc3 {[%clk 0:02:44.2]} 14... Ncd4 {[%clk 0:02:45.7]} 15. Bxd4 {[%clk 0:02:41.3]}
15... Nxd4 {[%clk 0:02:42.2]} 16. Nxd4 {[%clk 0:02:39.9]} 16... Qxd4 {[%clk
0:02:41.3]} 17. Rfd1 {[%clk 0:02:34.1]} 17... Bxe4 {[%clk 0:02:30.6]} 18. Bxe4
{[%clk 0:02:31.4]} 18... Qxb2 {[%clk 0:02:30.4]} 19. Qxb2 {[%clk 0:02:32.3]}
19... Bxb2 {[%clk 0:02:29.9]} 20. Rb1 {[%clk 0:02:28.3]} 20... Bg7 {[%clk
0:02:24.7]} 21. a4 {[%clk 0:02:27.3]} 21... Bc3 {[%clk 0:02:17.2]} 22. Rdc1
{[%clk 0:02:25.7]} 22... Bb4 {[%clk 0:02:16.2]} 23. Rc4 {[%clk 0:02:25.4]} 23...
Rfd8 {[%clk 0:02:14.5]} 24. Kg2 {[%clk 0:02:22.5]} 24... Ba5 {[%clk 0:02:14.4]}
25. h4 {[%clk 0:02:15]} 25... f5 {[%clk 0:02:13.3]} 26. Bf3 {[%clk 0:02:14.5]}
26... Kf7 {[%clk 0:02:13.6]} 27. h5 {[%clk 0:02:14.1]} 27... e6 {[%clk 0:02:12]}
28. hxg6+ {[%clk 0:02:13.7]} 28... hxg6 {[%clk 0:02:12.7]} 29. Rh1 {[%clk
0:02:13.4]} 29... Rh8 {[%clk 0:02:12.4]} 30. Rch4 {[%clk 0:02:10.2]} 30... Rxh4
{[%clk 0:02:11.8]} 31. Rxh4 {[%clk 0:02:11.1]} 31... Bc3 {[%clk 0:02:09.1]} 32.
Rh7+ {[%clk 0:02:10.3]} 32... Bg7 {[%clk 0:02:09]} 33. Rh1 {[%clk 0:02:10.3]}
33... Rc7 {[%clk 0:02:01.5]} 34. Rb1 {[%clk 0:02:08.9]} 34... Bc3 {[%clk
0:02:01.2]} 35. Rh1 {[%clk 0:02:05.7]} 35... Kf6 {[%clk 0:02:00]} 36. Rh8 {[%clk
0:02:03.2]} 36... c4 {[%clk 0:01:52.3]} 37. dxc4 {[%clk 0:01:48]} 37... Rxc4
{[%clk 0:01:51.1]} 38. a5 {[%clk 0:01:27.2]} 38... bxa5 {[%clk 0:01:43.6]} 39.
Rf8+ {[%clk 0:01:10.9]} 39... Kg7 {[%clk 0:01:40.6]} 40. Rb8 {[%clk 0:01:10.3]}
40... Rc7 {[%clk 0:01:36.5]} 41. Rb7 {[%clk 0:00:50.9]} 41... Rxb7 {[%clk
0:01:35.5]} 42. Bxb7 {[%clk 0:00:51.8]} 42... a4 {[%clk 0:01:32.2]} 43. Ba6
{[%clk 0:00:52.1]} 43... a3 {[%clk 0:01:31.6]} 44. Bc4 {[%clk 0:00:52.5]} 44...
Kf6 {[%clk 0:01:32.1]} 45. Kf3 {[%clk 0:00:51.4]} 45... e5 {[%clk 0:01:32.1]}
46. Ke3 {[%clk 0:00:46.8]} 46... Bd4+ {[%clk 0:01:32]} 47. Kf3 {[%clk 0:00:47]}
47... e4+ {[%clk 0:01:32]} 48. Kg2 {[%clk 0:00:46.5]} 48... Ke5 {[%clk
0:01:30.9]} 49. f3 {[%clk 0:00:45.6]} 49... Be3 {[%clk 0:01:28.6]} 50. Kf1
{[%clk 0:00:43]} 50... g5 {[%clk 0:01:26.7]} 51. Ke1 {[%clk 0:00:41.5]} 51...
Kd4 {[%clk 0:01:26.6]} 52. Be6 {[%clk 0:00:40.8]} 52... Kc3 {[%clk 0:01:21.6]}
53. fxe4 {[%clk 0:00:37.9]} 53... fxe4 {[%clk 0:01:21.1]} 54. g4 {[%clk
0:00:37.9]} 54... Kb2 {[%clk 0:01:20.9]} 0-1

[Event "Early-Titled-Tuesday-Blitz-July-09-2024"]
[Site "Chess.com"]
[Date "2024.07.09"]
[Round "8"]
[White "albi1999"]
[Black "masterofpuppets2"]
[Result "0-1"]
[WhiteElo "2626"]
[BlackElo "2484"]
[TimeControl "180+1"]
[EndTime "9:28:38 PDT"]
[Termination "masterofpuppets2 won by resignation"]

1. d4 {[%clk 0:03:00.9]} 1... d5 {[%clk 0:02:59.4]} 2. c4 {[%clk 0:03:00.2]}
2... e6 {[%clk 0:02:59.7]} 3. Nc3 {[%clk 0:02:59.5]} 3... Bb4 {[%clk 0:02:59.7]}
4. e3 {[%clk 0:02:56.5]} 4... Nf6 {[%clk 0:02:59.3]} 5. a3 {[%clk 0:02:56.3]}
5... Bxc3+ {[%clk 0:02:58.8]} 6. bxc3 {[%clk 0:02:57.1]} 6... c6 {[%clk
0:02:59.5]} 7. a4 {[%clk 0:02:54.3]} 7... O-O {[%clk 0:02:59.1]} 8. Ba3 {[%clk
0:02:53.1]} 8... Re8 {[%clk 0:02:59.4]} 9. cxd5 {[%clk 0:02:53.5]} 9... cxd5
{[%clk 0:02:59]} 10. Bb5 {[%clk 0:02:53.9]} 10... Bd7 {[%clk 0:02:58.7]} 11. Bd3
{[%clk 0:02:53.7]} 11... Nc6 {[%clk 0:02:56.5]} 12. Nf3 {[%clk 0:02:47.5]} 12...
e5 {[%clk 0:02:56.4]} 13. Be2 {[%clk 0:02:35.5]} 13... e4 {[%clk 0:02:44.2]} 14.
Nd2 {[%clk 0:02:34.5]} 14... Be6 {[%clk 0:02:39.9]} 15. O-O {[%clk 0:02:33.1]}
15... Na5 {[%clk 0:02:37.3]} 16. Qc2 {[%clk 0:02:27.8]} 16... Rc8 {[%clk
0:02:36.7]} 17. Rfc1 {[%clk 0:02:20.5]} 17... Bg4 {[%clk 0:02:21.6]} 18. Bf1
{[%clk 0:02:17.8]} 18... Re6 {[%clk 0:02:04.9]} 19. Qb2 {[%clk 0:02:03.6]} 19...
Rec6 {[%clk 0:01:59.4]} 20. Bb4 {[%clk 0:02:01.9]} 20... Nc4 {[%clk 0:01:51.2]}
21. Nxc4 {[%clk 0:02:00.5]} 21... dxc4 {[%clk 0:01:52.1]} 22. a5 {[%clk
0:01:58.9]} 22... Nd5 {[%clk 0:01:51.4]} 23. Bc5 {[%clk 0:01:57.4]} 23... b6
{[%clk 0:01:47.4]} 24. axb6 {[%clk 0:01:56.9]} 24... axb6 {[%clk 0:01:48.3]} 25.
Ba3 {[%clk 0:01:52.6]} 25... Rh6 {[%clk 0:01:14.1]} 26. h3 {[%clk 0:01:44.9]}
26... Bf3 {[%clk 0:00:54.3]} 27. Qb5 {[%clk 0:00:57.1]} 27... Rg6 {[%clk
0:00:48]} 28. g3 {[%clk 0:00:47.4]} 28... Qh4 {[%clk 0:00:32.8]} 29. Qxd5 {[%clk
0:00:29.9]} 29... Rxg3+ {[%clk 0:00:32.1]} 30. Kh2 {[%clk 0:00:30.4]} 30...
Rxh3+ {[%clk 0:00:32.3]} 0-1

[Event "Early-Titled-Tuesday-Blitz-July-09-2024"]
[Site "Chess.com"]
[Date "2024.07.09"]
[Round "8"]
[White "mouseslips_are_the_best"]
[Black "Andrey-Ivanov2011"]
[Result "0-1"]
[WhiteElo "2302"]
[BlackElo "2182"]
[TimeControl "180+1"]
[EndTime "9:28:40 PDT"]
[Termination "Andrey-Ivanov2011 won by resignation"]

1. e4 {[%clk 0:02:48.8]} 1... c5 {[%clk 0:02:58.9]} 2. Nf3 {[%clk 0:02:48.5]}
2... d6 {[%clk 0:02:59]} 3. d4 {[%clk 0:02:49.4]} 3... cxd4 {[%clk 0:02:59.9]}
4. Nxd4 {[%clk 0:02:49.3]} 4... Nf6 {[%clk 0:03:00.4]} 5. Nc3 {[%clk 0:02:49.8]}
5... a6 {[%clk 0:02:59.6]} 6. Bc4 {[%clk 0:02:48.6]} 6... e6 {[%clk 0:02:59.5]}
7. O-O {[%clk 0:02:48]} 7... Be7 {[%clk 0:02:59]} 8. Qf3 {[%clk 0:02:43.3]} 8...
b5 {[%clk 0:02:52.6]} 9. Bb3 {[%clk 0:02:43.3]} 9... Bb7 {[%clk 0:02:53]} 10.
Qg3 {[%clk 0:02:41.8]} 10... b4 {[%clk 0:02:46.1]} 11. Na4 {[%clk 0:02:37.3]}
11... Nc6 {[%clk 0:02:37.9]} 12. Nxc6 {[%clk 0:02:31.3]} 12... Bxc6 {[%clk
0:02:38.8]} 13. Qxg7 {[%clk 0:02:31.4]} 13... Rg8 {[%clk 0:02:38.9]} 14. Qh6
{[%clk 0:02:30.9]} 14... Bxe4 {[%clk 0:02:37.3]} 15. f3 {[%clk 0:02:30.6]} 15...
Bc6 {[%clk 0:02:29.7]} 16. Bg5 {[%clk 0:02:24.5]} 16... Rg6 {[%clk 0:02:16.8]}
17. Qh4 {[%clk 0:02:22.1]} 17... Qa5 {[%clk 0:01:58.9]} 18. Bxf6 {[%clk
0:02:13.5]} 18... Bxf6 {[%clk 0:01:54.2]} 19. Qxh7 {[%clk 0:02:10]} 19... Bxa4
{[%clk 0:01:51.7]} 20. Bxe6 {[%clk 0:02:08.7]} 20... fxe6 {[%clk 0:00:10.2]} 21.
Qxg6+ {[%clk 0:02:06.9]} 21... Ke7 {[%clk 0:00:10.7]} 22. Qh7+ {[%clk
0:02:04.4]} 22... Kf8 {[%clk 0:00:11.3]} 23. Rfe1 {[%clk 0:01:56.1]} 23... Qb6+
{[%clk 0:00:10.9]} 24. Kh1 {[%clk 0:01:55.5]} 24... Qa7 {[%clk 0:00:10.2]} 25.
Qxa7 {[%clk 0:01:54]} 25... Rxa7 {[%clk 0:00:10.2]} 26. Rxe6 {[%clk 0:01:54.7]}
26... Bxb2 {[%clk 0:00:10.5]} 27. Rae1 {[%clk 0:01:52.2]} 27... Bc3 {[%clk
0:00:08.9]} 28. Rd1 {[%clk 0:01:49.4]} 28... Bxc2 {[%clk 0:00:08.5]} 29. Rdxd6
{[%clk 0:01:47.1]} 29... Ba4 {[%clk 0:00:04.5]} 30. Rxa6 {[%clk 0:01:42.9]}
30... Rd7 {[%clk 0:00:04.2]} 31. h3 {[%clk 0:01:42]} 31... Bb5 {[%clk
0:00:03.9]} 32. Rad6 {[%clk 0:01:38.5]} 32... Ra7 {[%clk 0:00:02.3]} 33. Rb6
{[%clk 0:01:37.2]} 33... Bc4 {[%clk 0:00:02.4]} 34. Rh6 {[%clk 0:01:35.6]} 34...
Bxa2 {[%clk 0:00:03.1]} 35. Ra6 {[%clk 0:01:34.6]} 35... Rxa6 {[%clk 0:00:03]}
36. Rxa6 {[%clk 0:01:34.9]} 36... Bf7 {[%clk 0:00:03.8]} 37. g4 {[%clk
0:01:33.4]} 37... b3 {[%clk 0:00:04.4]} 38. Rb6 {[%clk 0:01:32.3]} 38... b2
{[%clk 0:00:04.6]} 39. Kg2 {[%clk 0:01:31.4]} 39... Bg6 {[%clk 0:00:04.6]} 40.
f4 {[%clk 0:01:24.3]} 40... Be4+ {[%clk 0:00:03.2]} 41. Kf2 {[%clk 0:01:23.6]}
41... Bd4+ {[%clk 0:00:03.3]} 42. Kg3 {[%clk 0:01:22.8]} 42... Bxb6 {[%clk
0:00:04.2]} 43. f5 {[%clk 0:01:23.2]} 43... b1=Q {[%clk 0:00:04.1]} 44. Kh4
{[%clk 0:01:23.9]} 44... Qd3 {[%clk 0:00:04.4]} 45. Kg5 {[%clk 0:01:24.1]} 45...
Bd8+ {[%clk 0:00:04.9]} 46. Kg6 {[%clk 0:01:24.1]} 46... Qd6+ {[%clk 0:00:04.8]}
47. Kh5 {[%clk 0:01:24.1]} 47... Qf6 {[%clk 0:00:05.1]} 0-1

[Event "Early-Titled-Tuesday-Blitz-July-09-2024"]
[Site "Chess.com"]
[Date "2024.07.09"]
[Round "8"]
[White "LewAnatol"]
[Black "waltereador"]
[Result "0-1"]
[WhiteElo "2178"]
[BlackElo "2325"]
[TimeControl "180+1"]
[EndTime "9:28:42 PDT"]
[Termination "waltereador won on time"]

1. e4 {[%clk 0:03:00.9]} 1... e5 {[%clk 0:02:18.3]} 2. Nf3 {[%clk 0:02:59.1]}
2... Nf6 {[%clk 0:02:18.2]} 3. d4 {[%clk 0:02:58.2]} 3... Nxe4 {[%clk
0:02:17.7]} 4. Bd3 {[%clk 0:02:57.5]} 4... d5 {[%clk 0:02:18.2]} 5. Nxe5 {[%clk
0:02:56.9]} 5... Nd7 {[%clk 0:02:18.8]} 6. Qe2 {[%clk 0:02:56.9]} 6... Nxe5
{[%clk 0:02:11.6]} 7. Bxe4 {[%clk 0:02:56.3]} 7... dxe4 {[%clk 0:02:08.1]} 8.
Qxe4 {[%clk 0:02:55.8]} 8... Bd6 {[%clk 0:02:03.3]} 9. dxe5 {[%clk 0:02:53.4]}
9... O-O {[%clk 0:02:03.4]} 10. O-O {[%clk 0:02:49.3]} 10... Re8 {[%clk
0:02:02]} 11. f4 {[%clk 0:02:43.4]} 11... Bc5+ {[%clk 0:01:54.8]} 12. Kh1 {[%clk
0:02:27.9]} 12... g6 {[%clk 0:01:55]} 13. c3 {[%clk 0:01:57.3]} 13... c6 {[%clk
0:01:53.4]} 14. Qf3 {[%clk 0:01:44.2]} 14... Be6 {[%clk 0:01:45]} 15. Nd2 {[%clk
0:01:38.6]} 15... Bd5 {[%clk 0:01:40.9]} 16. Qg3 {[%clk 0:01:31.6]} 16... f5
{[%clk 0:01:32.3]} 17. Nf3 {[%clk 0:01:29.2]} 17... Bxf3 {[%clk 0:01:26.9]} 18.
Qxf3 {[%clk 0:01:28.4]} 18... Qb6 {[%clk 0:01:25.7]} 19. b4 {[%clk 0:01:24.2]}
19... Be7 {[%clk 0:01:20]} 20. Be3 {[%clk 0:01:23.4]} 20... Qb5 {[%clk
0:01:19.9]} 21. Bd4 {[%clk 0:01:12]} 21... b6 {[%clk 0:01:17.4]} 22. e6 {[%clk
0:00:55.7]} 22... Qc4 {[%clk 0:01:13.5]} 23. Rfe1 {[%clk 0:00:10.4]} 23... c5
{[%clk 0:01:10.2]} 24. bxc5 {[%clk 0:00:09.5]} 24... bxc5 {[%clk 0:01:10.4]} 25.
Be5 {[%clk 0:00:06.7]} 25... Qxe6 {[%clk 0:01:04.5]} 26. Rab1 {[%clk 0:00:05.1]}
26... Qxa2 {[%clk 0:01:01]} 27. Rb7 {[%clk 0:00:04]} 27... Bf8 {[%clk
0:00:59.1]} 28. Qc6 {[%clk 0:00:02.7]} 28... Qe6 {[%clk 0:00:52.7]} 29. Qc7
{[%clk 0:00:01.4]} 29... Re7 {[%clk 0:00:49.5]} 0-1